Cogmind - Beta 13 X1 @@@ ROGUE MODE // 2023.07.30 @ 20:55:50 Player: Schmee Result: Destroyed by TX-W7U(R) with Subdweller Laser Performance ------------- Evolutions (0) 0 Regions Visited (3) 600 Robots Destroyed (14) 70 Value Destroyed (290) 290 Prototype IDs (0) 0 Alien Tech Used (0) 0 Bonus (0) 0 TOTAL SCORE: 960 Bonus ------- None Cogmind --------- Core Integrity 0/250 Matter 277/300 Energy 97/100 System Corruption 0% Temperature Cool (6) Movement Core (50) Location -10/Subcaves Parts ------- > --- POWER (1) -------- (None) > --- PROPULSION (2) --- (None) > --- UTILITY (2) ------ (None) > --- WEAPON (2) ------- (None) > --- INVENTORY (5) ---- Improved Heat Sink Scrap Shield Beam Cannon Grenade Launcher Peak State ------------ > --- POWER ------------ Improved Ion Engine > --- PROPULSION ------- Light Treads Light Treads > --- UTILITY ---------- Large Storage Unit Terrain Scanner > --- WEAPON ----------- Medium Laser Assault Rifle > --- INVENTORY -------- Ion Engine Improved Ion Engine Light Nuclear Core Light Treads Aluminum Leg Wheel Compact Wheel Heat Sink Improved Heat Sink Medium Storage Unit Scrap Shield Medium Laser Beam Cannon Grenade Launcher [Rating: 10] Favorites ----------- Power Improved Ion Engine Engine Improved Ion Engine Propulsion Light Treads Treads Light Treads Leg Aluminum Leg Wheel Compact Wheel Utility Terrain Scanner Device Terrain Scanner Storage Large Storage Unit Weapon Assault Rifle Energy Gun Medium Laser Energy Cannon Beam Cannon Ballistic Gun Assault Rifle Launcher Grenade Launcher Build | -11 -10 -10 -10 ------- Run | Jun Mat Min Sub Slots Evolved . | . . . . Power . | . . . . Propulsion . | . . . . Utility . | . . . . Weapon . | . . . . Parts Attached 13 | . 10 2 1 Power 2 | . 2 . . Engine 2 | . 2 . . Core . | . . . . Reactor . | . . . . Propulsion 3 | . 2 . 1 Treads 2 | . 2 . . Leg . | . . . . Wheel 1 | . . . 1 Hover . | . . . . Flight . | . . . . Utility 3 | . 3 . . Device 1 | . 1 . . Storage 2 | . 2 . . Processor . | . . . . Hackware . | . . . . Protection . | . . . . Artifact . | . . . . Weapon 5 | . 3 2 . Energy Gun 1 | . . 1 . Energy Cannon 2 | . 2 . . Ballistic Gun . | . . . . Ballistic Cannon . | . . . . Launcher 2 | . 1 1 . Special Weapon . | . . . . Impact Weapon . | . . . . Slashing Weapon . | . . . . Piercing Weapon . | . . . . Special Melee Weapon . | . . . . Unidentified Prototypes . | . . . . Parts Lost 2 | . . . 2 Power . | . . . . Propulsion 1 | . . . 1 Utility . | . . . . Weapon 1 | . . . 1 Highest Loss Streak 1 | . . . 1 To Critical Strikes . | . . . . Average Slot Usage (%) 98 | . 99 100 84 Engine 13 | . 14 14 12 Treads 18 | . 11 28 25 Leg 9 | . 16 . . Device 13 | . 13 14 12 Storage 13 | . 14 14 12 Energy Gun 6 | . 4 8 12 Energy Cannon 7 | . 9 5 . Ballistic Gun 13 | . 14 14 7 Naked Turns 2 | . . . 2 Heaviest Build 33 | 14 33 33 32 Greatest Support 40 | 20 40 40 40 Greatest Overweight (x) 1 | . 1 . . Average Overweight (x) . | . . . . Largest Inventory Capacity 15 | 8 15 15 15 Average Capacity 12 | 8 10 15 14 Most Carried 15 | 6 11 13 15 Average Carried 10 | 6 8 12 14 Final Capacity 15 | 8 15 15 5 Final Carried 13 | 6 11 13 5 Class Distribution -------------------- 100% | Mutant Dominant Class ---------------- Mutant | -10/Materials Mutant | -10/Mines Mutant | -10/Subcaves Resources | -11 -10 -10 -10 ----------- Run | Jun Mat Min Sub Matter Collected 505 | 200 205 86 14 Remotely . | . . . . Salvage Created 339 | . 240 99 . Parts 27 | . 19 8 . Haulers Intercepted 1 | . 1 . . Recyclers Shooed . | . . . . Parts Field Recycled . | . . . . Retrieved Matter . | . . . . Parts Self-Destructed 1 | . . . 1 Prevented . | . . . . Kills | -11 -10 -10 -10 ------- Run | Jun Mat Min Sub Combat Hostiles Destroyed 11 | . 6 5 . Guns 3 | . 2 1 . Cannons 2 | . 1 1 . AOE 6 | . 3 3 . Classes Destroyed 4 | . 4 . . Hauler 1 | . 1 . . Watcher 2 | . 2 . . Swarmer 6 | . 3 3 . Grunt 5 | . 3 2 . Best Kill Streak 3 | . 3 3 . Combat Bots Only 3 | . 3 3 . Max Kills in Single Turn 2 | . 2 1 . Gunslinging . | . . . . Exploded 2 | . 2 1 . Melee . | . . . . Uniques/NPCs Destroyed . | . . . . Combat | -11 -10 -10 -10 -------- Run | Jun Mat Min Sub Damage Taken 899 | . 335 174 390 Core 252 | . 60 18 174 Absorbed by Shields . | . . . . Core Remaining (%) 100 | 100 . . . Volleys Fired 48 | . 35 12 1 Largest 2 | . 2 2 1 Hottest 80 | . 80 80 20 Shots Fired 85 | . 65 19 1 Gun 52 | . 44 7 1 Cannon 23 | . 16 7 . Launcher 10 | . 5 5 . Special . | . . . . Kinetic 38 | . 30 7 1 Thermal 37 | . 30 7 . Explosive 10 | . 5 5 . Electromagnetic . | . . . . Robot Hit Streak 9 | . 8 9 5 Robot Miss Streak 5 | . 5 2 . Penetration Max . | . . . . Secondary Targets . | . . . . Shots Hit Robots 50 | . 37 12 1 Core Hits 25 | . 17 8 . Critical Kills . | . . . . Critical Parts Destroyed 1 | . 1 . . Critical Strikes 1 | . 1 . . Destroy 1 | . 1 . . Melee Attacks . | . . . . Impact . | . . . . Slashing . | . . . . Piercing . | . . . . Sneak Attacks . | . . . . Combat Hostiles . | . . . . Follow-up Attacks . | . . . . Damage Inflicted 1053 | . 713 326 14 Guns 396 | . 332 50 14 Cannons 265 | . 160 105 . Explosions 377 | . 206 171 . Melee . | . . . . Ramming 15 | . 15 . . Kinetic 297 | . 233 50 14 Thermal 364 | . 259 105 . Explosive 377 | . 206 171 . Electromagnetic . | . . . . Impact . | . . . . Slashing . | . . . . Piercing . | . . . . Highest Corruption . | . . . . Average Corruption . | . . . . Corruption Purged . | . . . . Corruption Blocked . | . . . . Overload Shots . | . . . . Overflow Damage 13 | . 11 2 . Projectiles 8 | . 8 . . Explosions 5 | . 3 2 . Melee . | . . . . Knockbacks . | . . . . Impact . | . . . . Kinetic . | . . . . Secondary . | . . . . Self-Inflicted Damage 32 | . . 32 . Shots 1 | . . 1 . Rammed 2 | . 2 . . Targets Rammed 2 | . 2 . . Kicked . | . . . . Crushed . | . . . . Highest Temperature 225 | . 177 225 . Average Temperature 75 | . 61 125 . Received Heat Transfer 261 | . 156 87 18 Siege Activations . | . . . . Robots Corrupted . | . . . . Combat Hostiles . | . . . . Parts Fried . | . . . . Impact Corruptions . | . . . . Robots Melted . | . . . . Combat Hostiles . | . . . . Parts Melted 1 | . 1 . . Heat Transferred 851 | . 629 222 . Parts Sabotaged . | . . . . Parts Stolen . | . . . . Parts Stripped . | . . . . Power Chain Reactions . | . . . . Missiles Intercepted . | . . . . Alert | -11 -10 -10 -10 ------- Run | Jun Mat Min Sub Peak Influence 174 | . 174 149 . Initial 12 | . . 12 . Average 62 | . 61 64 . Maximum Alert Level . | . . . . Low Security (%) 100 | 100 100 100 . Level 1 . | . . . . Level 2 . | . . . . Level 3 . | . . . . Level 4 . | . . . . Level 5 . | . . . . High Security . | . . . . Max Security . | . . . . Squads Dispatched 1 | . 1 . . Investigation . | . . . . Extermination . | . . . . Reinforcement 1 | . 1 . . Assault . | . . . . Garrison . | . . . . Intercept . | . . . . Searches Triggered . | . . . . Construction Impeded . | . . . . Haulers Reinforced . | . . . . Active Scanning Responses . | . . . . Cargo Convoy Interrupts . | . . . . Stealth | -11 -10 -10 -10 --------- Run | Jun Mat Min Sub Distress Signals . | . . . . Communications Jammed . | . . . . Distress Signals . | . . . . Times Spotted 28 | . 13 5 10 Peak Tracking Total 9 | . 4 2 9 Tactical Retreats . | . . . . Traps | -11 -10 -10 -10 ------- Run | Jun Mat Min Sub Traps Triggered . | . . . . Indirectly . | . . . . Trap Hack Attempts . | . . . . Triggered . | . . . . Disarmed . | . . . . Reprogrammed . | . . . . Reused . | . . . . Traps Extracted . | . . . . Installed . | . . . . Triggered . | . . . . Machines | -11 -10 -10 -10 ---------- Run | Jun Mat Min Sub Machines Disabled 2 | . 2 . . Max in Single Turn 2 | . 2 . . Machines Repaired . | . . . . Machines Sabotaged . | . . . . Overloaded Fab Kills . | . . . . Hacking | -11 -10 -10 -10 --------- Run | Jun Mat Min Sub Machines Accessed 2 | . 2 . . Terminals 2 | . 2 . . Fabricators . | . . . . Repair Stations . | . . . . Recycling Units . | . . . . Scanalyzers . | . . . . Garrison Access . | . . . . Total Hacks 3 | . 3 . . Successful 1 | . 1 . . Failed 2 | . 2 . . Catastrophic 1 | . 1 . . Database Lockouts . | . . . . Manual . | . . . . Terminals 3 | . 3 . . Fabricators . | . . . . Repair Stations . | . . . . Recycling Units . | . . . . Scanalyzers . | . . . . Garrison Access . | . . . . Terminal Hacks 1 | . 1 . . Branch Access Points 1 | . 1 . . Fabricator Hacks . | . . . . Repair Station Hacks . | . . . . Recycling Unit Hacks . | . . . . Scanalyzer . | . . . . Garrison Access Hacks . | . . . . Unauthorized Hacks . | . . . . Terminals . | . . . . Fabricators . | . . . . Repair Stations . | . . . . Recycling Units . | . . . . Scanalyzers . | . . . . Garrison Access . | . . . . Data Cores Recovered . | . . . . Used . | . . . . Hacking Detections 2 | . 2 . . Full Trace Events 1 | . 1 . . Feedback Events . | . . . . Feedback Blocked . | . . . . Robot Schematics Acquired . | . . . . Robots Built . | . . . . Authchips . | . . . . Time . | . . . . Total Robot Build Rating . | . . . . Part Schematics Acquired . | . . . . Parts Built . | . . . . Authchips . | . . . . Time . | . . . . Total Part Build Rating . | . . . . Parts Repaired . | . . . . Time . | . . . . Parts Recycled . | . . . . Recycled Matter . | . . . . Retrieved Matter . | . . . . Retrieved Components . | . . . . Parts Scanalyzed . | . . . . Part Schematics Acquired . | . . . . Parts Damaged . | . . . . Bothacking | -11 -10 -10 -10 ------------ Run | Jun Mat Min Sub Used RIF Installer . | . . . . Robots Hacked . | . . . . Non-combat . | . . . . Combat . | . . . . Robot Hacks Applied . | . . . . Relay Couplers Released . | . . . . Fabnet Peak Effective % . | . . . . Robots Rewired . | . . . . Allies Hacked . | . . . . Hacks Repelled . | . . . . Allies | -11 -10 -10 -10 -------- Run | Jun Mat Min Sub Total Allies . | . . . . Largest Group . | . . . . Highest-Rated Group . | . . . . Highest-Rated Ally . | . . . . Total Orders . | . . . . Ally Attacks . | . . . . Total Damage . | . . . . Kills . | . . . . Allies Corrupted . | . . . . Allies Melted . | . . . . Intel | -11 -10 -10 -10 ------- Run | Jun Mat Min Sub Robot Analysis Total . | . . . . Derelict Logs Recovered . | . . . . Drone Launches . | . . . . Drone Recoveries . | . . . . Exploration | -11 -10 -10 -10 ------------- Run | Jun Mat Min Sub Turns Passed 1583 | 6 907 573 97 Spaces Moved 894 | 6 502 327 59 Core 2 | . . . 2 Treads 569 | . 187 327 55 Legs 321 | 6 315 . . Wheels 2 | . . . 2 Hover . | . . . . Flight . | . . . . Fastest Speed 50 | 120 120 160 50 Average Speed 154 | 120 151 160 154 Slowest Speed 240 | 120 240 160 160 Overloaded Moves . | . . . . Propulsion Burnouts . | . . . . Robots Hopped . | . . . . Cave-ins Triggered . | . . . . Exploration Rate (%) 33 | 2 64 61 6 Regions Visited 3 Branch Regions 2 Pre-discovered Areas . | . . . . Known Exits Taken 1 | . 1 . . Unknown Exits Taken 2 | 1 . 1 . Scrap Searched 1 | . . 1 . Spaces Dug . | . . . . Terrain Destroyed 39 | . 21 18 . Melee . | . . . . Projectile . | . . . . AOE 39 | . 21 18 . Terrain Rammed . | . . . . Walls Destroyed . | . . . . Machines Disabled . | . . . . Actions | -11 -10 -10 -10 --------- Run | Jun Mat Min Sub Total 1005 | 5 580 357 63 Wait 37 | . 21 15 1 Move 891 | 5 501 326 59 Hop . | . . . . Pick Up 10 | . 7 2 1 Fast Attach 1 | . . . 1 Attach 1 | . 1 . . Detach . | . . . . Swap 11 | . 9 2 . Drop 4 | . 4 . . Fire 48 | . 35 12 1 Melee . | . . . . Ram . | . . . . Kick . | . . . . Crush 2 | . 2 . . Escape Stasis . | . . . . Rewire . | . . . . Trap . | . . . . Miscellaneous . | . . . . Route ------- -11/Junkyard -10/Materials (discovered 2 exits: [*Mat] / *Min) -10/Mines (discovered 2 exits: [*Mat] / [*Sub]) -10/Subcaves History --------- Turn | Location | Event 1 | -11/Junkyard | Discovered new exit (range 3) 7 | -11/Junkyard | Entered Materials 327 | -10/Materials | Build established: Mutant 376 | -10/Materials | Discovered new exit (range 11) 727 | -10/Materials | Discovered new exit (range 4) 764 | -10/Materials | Identified exit to Mines 914 | -10/Materials | Entered Mines 1120 | -10/Mines | Discovered new exit (range 7) 1292 | -10/Mines | Discovered new exit (range 6) 1487 | -10/Mines | Entered Subcaves 1537 | -10/Subcaves | Ambushed by Subdweller buried in earth 1557 | -10/Subcaves | Ambushed by swarm of Subdwellers 1572 | -10/Subcaves | Core integrity fell below 50% 1579 | -10/Subcaves | Released all parts (6) 1581 | -10/Subcaves | Core integrity fell below 20% 1584 | -10/Subcaves | Destroyed by TX-W7U(R) with Subdweller Laser Last Messages --------------- 01492_ Acquired Scrap Shield. 01501_ Acquired 14 matter. 01529_ HN-YDK(O) collects matter. 01538_ 2B-7MU(R): "NOSTUCKSUB!" 01538_ ZO-2O5(R): "ARGHSUB!" 01539_ Assault Rifle destroyed. 01546_ The unstable cave ceiling collapses. 01546_ 02-1OA(h) suffers critical hit (Destroy). 01546_ 02-1OA(h) destroyed. 6V-HDG(R) emerges from concealment. Z4-3WR(R) comes tumbling into view. 01559_ QP-AOZ(R) emerges from the Twisted Machinery. 2C-09S(R) emerges from concealment. 01579_ Released Imp. Ion Engine. 01579_ Released Lrg. Storage Unit. 01579_ Released Terrain Scanner. 01579_ Released Lgt. Treads. 01579_ Released Med. Laser. 01580_ Acquired Com. Wheel. 01583_ Com. Wheel destroyed. Map ----- +----------------------------------------------------+ | ?????????????????????????????????????????????????? | | ?????????????????????????????????????????????????? | | ?????????????????????????????????????????????????? | | ?????????????????????????????????????????????????? | | ?????????????????????????????????????????????????? | | ?????????????????????????????????????????????????? | | ?????????????????????????????????????????????????? | | ?????????????????????????????????????????????????? | | ?????????????????????????????????????????????????? | | ?????????????????????????????????????????????????? | | ?????????????????????????????????????????????????? | | ?????????????????????????????????????????????????? | | ?????????????????????? ??????????????????????????? | | ?????????????????????????????????????????????????? | | ?????????????????????????????????????????????????? | | ?????????????????????????????????????????????????? | | ?????????????????????????????????????????????????? | | ?????????????????????????????? #?????????????????? | | ???????????????"?????????????? ??????????????????? | | ????????#???????????????????? ##?????????????????? | | ???????????????"?????#??????? ##????????????????? | | ??????????????#""??????????? ##???????????????? | | ???????????####"""?####?#??# #???????????????? | | ????????? ## """""## ##??# % #???????????????? | | ???????? "" R " =%### %#????????????????? | | ?????????? """R == **@ #???????????????????? | | ???????????""""## %##[=!=! ##???#???????????????? | | ????????????????###?# !*! #????????????????????? | | ????????????????????#RRR ####??????????????????? | | ??????????#?????????# O #### ##?????????????????? | | ??????????#????????#### R#?## #??????????#??????? | | ????????????"?????????#R ### #???????#?????#???? | | ???????????????# ""## ####??????????????? | | ??????????????? ?# ##?????#??#??????? | | ?????????????" " " ## # #???????????????? | | ????????????? " ##### #????#??????????? | | ??????????#?# " " ##??## #####??#??????#??? | | ????????????# % & ### ## " ##???????????? | | ????????????### "" ########????? | | ??????????????# " ""###### | | ????????????? ### """ # | | ???????????? ??## % | | ???????????? # ## #???# | | ?????????????###?## #????## ""% ### | | ??????????????????##??????# # " ""####?? | | ??????????????????????????## ## # " ###????? | | ??????????????????????????#####??##########??????? | | ?????????????????????????????????????#???????????? | | ???????????????????????????????????????????????#?? | | ??????????????????????????????????????????????#??? | +----------------------------------------------------+ Best States ------------- Heat Dissipation 25 Energy Generation 12 Energy Capacity 265 Matter Stores 300 Matter Capacity 300 Sight Range 16 Terrain Scan Range 14 Terrain Scan Density 10 Evasion (%) 55 Recoil Reduction 2 Item Schematics ----------------- None Robot Schematics ------------------ None Fabricated ------------ Nothing Alien Tech Used ----------------- None Achievements -------------- None Challenges ------------ None Game ------ Seed CompositeVariableMace Manual? 0 Play Time 00:19:46 Cumulative 37.2 hours Start 2023.07.30 @ 18:45:55 End 2023.07.30 @ 20:55:50 Sessions 3 Manual Loads 0 Difficulty Rogue Special Mode None Game No. 23 Rogue 23 Adventurer 0 Explorer 0 Win Type - Total 1 Types 1/0/0/0/0/0/0/0/0 Lore% 21 Gallery% 41 Achievement% 28 Wizard Run 0 Options --------- ASCII 0 Keyboard 1 Movement Numpad Keybinds 0 Fullscreen 1 Font 24/Smallcaps Map View 76x50 Tactical HUD 1 Map Filters NONE Filters NONE Steam 1 RUN: e0651a26-481b-45b1-98d5-710edee0cb19